Workbook

Sheet Decomposition_Prevalence
A1: 5 | B1: 7
B6: Nominal Expenditure Growth: Nonimal Expenditures 2018/ Nominal Expenditures 2008 | C6: Price Index Growth: Yearly Cumulative Price Index 2018 /Yearly Cumulative Price Index 2008 | D6: Real Growth in 2008 dollars: Nominal Expenditure Growth / Price Index Growth | E6: Population Growth Rate: US Population 2018 / US Population 2008 | F6: Prevalence Growth: % of Population with Disease 2018/ % of Population with Disease in 2008 | G6: Growth Rate in Population Treated for Disease: People with Disease in 2018/ People with Disease 2008 | H6: Real Output per Treated Growth: Real Dollars per Treated 2018 / Real Dollars per Treated 2008
A7: =INDEX(decomposition_by_disease!A2:A18,Decomposition_Prevalence!$A$1) -> 5 Diseases of the nervous system and sense organs | B7: =INDEX(decomposition_by_disease!B2:B18,Decomposition_Prevalence!$A$1) -> 1.983030128 | C7: =INDEX(decomposition_by_disease!C2:C18,Decomposition_Prevalence!$A$1) -> 1.07047864 | D7: =INDEX(decomposition_by_disease!D2:D18,Decomposition_Prevalence!$A$1) -> 1.852470525 | E7: =INDEX(decomposition_by_disease!E2:E18,Decomposition_Prevalence!$A$1) -> 1.074793437 | F7: =INDEX(decomposition_by_disease!F2:F18,Decomposition_Prevalence!$A$1) -> 0.9242227337 | G7: =INDEX(decomposition_by_disease!G2:G18,Decomposition_Prevalence!$A$1) -> 0.9933485288 | H7: =INDEX(decomposition_by_disease!H2:H18,Decomposition_Prevalence!$A$1) -> 1.864874686
A8: =INDEX(decomposition_by_disease!A2:A18,Decomposition_Prevalence!$B$1) -> 7 Diseases of the respiratory system | B8: =INDEX(decomposition_by_disease!B2:B20,Decomposition_Prevalence!$B$1) -> 1.529489175 | C8: =INDEX(decomposition_by_disease!C2:C20,Decomposition_Prevalence!$B$1) -> 1.28232902 | D8: =INDEX(decomposition_by_disease!D2:D20,Decomposition_Prevalence!$B$1) -> 1.192743166 | E8: =INDEX(decomposition_by_disease!E2:E20,Decomposition_Prevalence!$B$1) -> 1.074793437 | F8: =INDEX(decomposition_by_disease!F2:F20,Decomposition_Prevalence!$B$1) -> 0.5139881364 | G8: =INDEX(decomposition_by_disease!G2:G20,Decomposition_Prevalence!$B$1) -> 0.5524310758 | H8: =INDEX(decomposition_by_disease!H2:H20,Decomposition_Prevalence!$B$1) -> 2.159080504
A39: 1 | B39: 2
B43: 1996 | C43: 1997 | D43: 1998 | E43: 1999 | F43: 2000 | G43: 2001 | H43: 2002 | I43: 2003 | J43: 2004 | K43: 2005 | L43: 2006 | M43: 2007 | N43: 2008 | O43: 2009 | P43: 2010 | Q43: 2011 | R43: 2012 | S43: 2013 | T43: 2014 | U43: 2015 | V43: 2016 | W43: 2017 | X43: 2018
A44: =INDEX(prevalence_of_disease!A27:A43,Decomposition_Prevalence!$A$39) -> 1 Infectious and parasitic diseases | B44: =INDEX(prevalence_of_disease!B27:B43,Decomposition_Prevalence!$A$39) -> 0.131818 | C44: =INDEX(prevalence_of_disease!C27:C43,Decomposition_Prevalence!$A$39) -> 0.102998 | D44: =INDEX(prevalence_of_disease!D27:D43,Decomposition_Prevalence!$A$39) -> 0.091104 | E44: =INDEX(prevalence_of_disease!E27:E43,Decomposition_Prevalence!$A$39) -> 0.085203 | F44: =INDEX(prevalence_of_disease!F27:F43,Decomposition_Prevalence!$A$39) -> 0.086851 | G44: =INDEX(prevalence_of_disease!G27:G43,Decomposition_Prevalence!$A$39) -> 0.091779 | H44: =INDEX(prevalence_of_disease!H27:H43,Decomposition_Prevalence!$A$39) -> 0.090699 | I44: =INDEX(prevalence_of_disease!I27:I43,Decomposition_Prevalence!$A$39) -> 0.089543 | J44: =INDEX(prevalence_of_disease!J27:J43,Decomposition_Prevalence!$A$39) -> 0.081751 | K44: =INDEX(prevalence_of_disease!K27:K43,Decomposition_Prevalence!$A$39) -> 0.083677 | L44: =INDEX(prevalence_of_disease!L27:L43,Decomposition_Prevalence!$A$39) -> 0.080027 | M44: =INDEX(prevalence_of_disease!M27:M43,Decomposition_Prevalence!$A$39) -> 0.079347 | N44: =INDEX(prevalence_of_disease!N27:N43,Decomposition_Prevalence!$A$39) -> 0.080598 | O44: =INDEX(prevalence_of_disease!O27:O43,Decomposition_Prevalence!$A$39) -> 0.086439 | P44: =INDEX(prevalence_of_disease!P27:P43,Decomposition_Prevalence!$A$39) -> 0.084969 | Q44: =INDEX(prevalence_of_disease!Q27:Q43,Decomposition_Prevalence!$A$39) -> 0.08426 | R44: =INDEX(prevalence_of_disease!R27:R43,Decomposition_Prevalence!$A$39) -> 0.089541 | S44: =INDEX(prevalence_of_disease!S27:S43,Decomposition_Prevalence!$A$39) -> 0.093484 | T44: =INDEX(prevalence_of_disease!T27:T43,Decomposition_Prevalence!$A$39) -> 0.097494 | U44: =INDEX(prevalence_of_disease!U27:U43,Decomposition_Prevalence!$A$39) -> 0.092215 | V44: =INDEX(prevalence_of_disease!V27:V43,Decomposition_Prevalence!$A$39) -> 0.067851 | W44: =INDEX(prevalence_of_disease!W27:W43,Decomposition_Prevalence!$A$39) -> 0.06407 | X44: =INDEX(prevalence_of_disease!X27:X43,Decomposition_Prevalence!$A$39) -> 0.060367
A45: =INDEX(prevalence_of_disease!A27:A43,Decomposition_Prevalence!$B$39) -> 2 Neoplasms | B45: =INDEX(prevalence_of_disease!B27:B43,Decomposition_Prevalence!$B$39) -> 0.062215 | C45: =INDEX(prevalence_of_disease!C27:C43,Decomposition_Prevalence!$B$39) -> 0.063889 | D45: =INDEX(prevalence_of_disease!D27:D43,Decomposition_Prevalence!$B$39) -> 0.062502 | E45: =INDEX(prevalence_of_disease!E27:E43,Decomposition_Prevalence!$B$39) -> 0.060588 | F45: =INDEX(prevalence_of_disease!F27:F43,Decomposition_Prevalence!$B$39) -> 0.060946 | G45: =INDEX(prevalence_of_disease!G27:G43,Decomposition_Prevalence!$B$39) -> 0.066405 | H45: =INDEX(prevalence_of_disease!H27:H43,Decomposition_Prevalence!$B$39) -> 0.072136 | I45: =INDEX(prevalence_of_disease!I27:I43,Decomposition_Prevalence!$B$39) -> 0.071162 | J45: =INDEX(prevalence_of_disease!J27:J43,Decomposition_Prevalence!$B$39) -> 0.068477 | K45: =INDEX(prevalence_of_disease!K27:K43,Decomposition_Prevalence!$B$39) -> 0.068398 | L45: =INDEX(prevalence_of_disease!L27:L43,Decomposition_Prevalence!$B$39) -> 0.070944 | M45: =INDEX(prevalence_of_disease!M27:M43,Decomposition_Prevalence!$B$39) -> 0.078878 | N45: =INDEX(prevalence_of_disease!N27:N43,Decomposition_Prevalence!$B$39) -> 0.086208 | O45: =INDEX(prevalence_of_disease!O27:O43,Decomposition_Prevalence!$B$39) -> 0.082641 | P45: =INDEX(prevalence_of_disease!P27:P43,Decomposition_Prevalence!$B$39) -> 0.082086 | Q45: =INDEX(prevalence_of_disease!Q27:Q43,Decomposition_Prevalence!$B$39) -> 0.089448 | R45: =INDEX(prevalence_of_disease!R27:R43,Decomposition_Prevalence!$B$39) -> 0.087641 | S45: =INDEX(prevalence_of_disease!S27:S43,Decomposition_Prevalence!$B$39) -> 0.085773 | T45: =INDEX(prevalence_of_disease!T27:T43,Decomposition_Prevalence!$B$39) -> 0.091367 | U45: =INDEX(prevalence_of_disease!U27:U43,Decomposition_Prevalence!$B$39) -> 0.091083 | V45: =INDEX(prevalence_of_disease!V27:V43,Decomposition_Prevalence!$B$39) -> 0.081163 | W45: =INDEX(prevalence_of_disease!W27:W43,Decomposition_Prevalence!$B$39) -> 0.073651 | X45: =INDEX(prevalence_of_disease!X27:X43,Decomposition_Prevalence!$B$39) -> 0.064288

Sheet decomposition_by_disease
A1: Diseases | B1: Nominal Expenditure Growth: Nonimal Expenditures 2018/ Nominal Expenditures 2008 | C1: Price Index Growth: Yearly Cumulative Price Index 2018 / Yearly Cumulative Price Index 2008 | D1: Real Growth in 2008 dollars: Nominal Expenditure Growth / Price Index Growth | E1: Population Growth Rate: US Population 2018 / US Population 2008 | F1: Prevalence Growth: % of Population with Disease 2018/ % of Population with Disease in 2008 | G1: Growth Rate for Number of People Treated for Disease:People with Disease in 2018/ People with Disease 2008 | H1: Real Output per Treated Growth: Real Dollars per Treated 2018 / Real Dollars per Treated 2008
A2: 1 Infectious and parasitic diseases | B2: 2.412638167 | C2: 1.022004356 | D2: 2.360692645 | E2: 1.074793437 | F2: 0.7489957454 | G2: 0.8050157118 | H2: 2.932480212
A3: 2 Neoplasms | B3: 1.009444166 | C3: 0.8251774292 | D3: 1.223305596 | E3: 1.074793437 | F3: 0.7457391536 | G3: 0.8015155483 | H3: 1.52624063
A4: 3 Endocrine, nutritional, and metabolic diseases and immunity disorders | B4: 1.796161961 | C4: 1.133052396 | D4: 1.585241748 | E4: 1.074793437 | F4: 0.9907778584 | G4: 1.06488154 | H4: 1.488655487
A5: 4 Mental disorders | B5: 1.871472281 | C5: 1.17278565 | D5: 1.595749642 | E5: 1.074793437 | F5: 1.068115775 | G5: 1.148003826 | H5: 1.390021189
A6: 5 Diseases of the nervous system and sense organs | B6: 1.983030128 | C6: 1.07047864 | D6: 1.852470525 | E6: 1.074793437 | F6: 0.9242227337 | G6: 0.9933485288 | H6: 1.864874686
A7: 6 Diseases of the circulatory system | B7: 1.226477188 | C7: 0.9317962491 | D7: 1.316250402 | E7: 1.074793437 | F7: 0.9028717287 | G7: 0.9704006088 | H7: 1.356398986
A8: 7 Diseases of the respiratory system | B8: 1.529489175 | C8: 1.28232902 | D8: 1.192743166 | E8: 1.074793437 | F8: 0.5139881364 | G8: 0.5524310758 | H8: 2.159080504
A9: 8 Diseases of the digestive system | B9: 1.12005157 | C9: 1.190758401 | D9: 0.9406203388 | E9: 1.074793437 | F9: 0.4460139083 | G9: 0.4793728216 | H9: 1.962189545
A10: 9 Diseases of the genitourinary system | B10: 1.616658385 | C10: 0.9981786971 | D10: 1.619608182 | E10: 1.074793437 | F10: 0.9214600396 | G10: 0.9903792034 | H10: 1.635341469
A11: 10 Complications of pregnancy, childbirth, and the puerperium | B11: 1.473010552 | C11: 0.9883389839 | D11: 1.490390014 | E11: 1.074793437 | F11: 0.7628817877 | G11: 0.8199403389 | H11: 1.817681048
A12: 11 Diseases of the skin and subcutaneous tissue | B12: 1.4970967 | C12: 1.261580354 | D12: 1.186683587 | E12: 1.074793437 | F12: 0.8917243916 | G12: 0.958419524 | H12: 1.238167167
A13: 12 Diseases of the musculoskeletal system and connective tissue | B13: 1.944118321 | C13: 1.1013802 | D13: 1.765165491 | E13: 1.074793437 | F13: 0.833335647 | G13: 0.8956636845 | H13: 1.970790512
A14: 13 Injury and poisoning | B14: 0.9939804383 | C14: 1.146843122 | D14: 0.8667100316 | E14: 1.074793437 | F14: 0.5238262123 | G14: 0.5630049753 | H14: 1.53943583
A15: 14 Symptoms; signs; and ill-defined conditions | B15: 4.153157845 | C15: 1.222621162 | D15: 3.396929462 | E15: 1.074793437 | F15: 1.5162481 | G15: 1.629653507 | H15: 2.084448901
A16: 15 Blood and blood-forming organs; congenital anomalies; and certain conditions originating in the perinatal period | B16: 0.3946255915 | C16: 0.7947630617 | D16: 0.4965323761 | E16: 1.074793437 | F16: 0.4366180158 | G16: 0.4692741781 | H16: 1.058085868
A17: 16 Residual codes; unclassified | B17: 4.000092004 | C17: 0.9230027608 | D17: 4.333781191 | E17: 1.074793437 | F17: 1.744138527 | G17: 1.874588643 | H17: 2.311857168
A18: 17 Dental Diseases | B18: 1.532785611 | C18: 1.288317767 | D18: 1.189757411 | E18: 1.074793437 | F18: 1.081391757 | G18: 1.162272764 | H18: 1.023647329

Sheet prevalence_of_disease
A1: Period | B1: 1 Infectious and parasitic diseases | C1: 2 Neoplasms | D1: 3 Endocrine- nutritional- and metabolic diseases and immunity disorders | E1: 4 Mental disorders | F1: 5 Diseases of the nervous system and sense organs | G1: 6 Diseases of the circulatory system | H1: 7 Diseases of the respiratory system | I1: 8 Diseases of the digestive system | J1: 9 Diseases of the genitourinary system | K1: 10 Complications of pregnancy- childbirth- and the puerperium | L1: 11 Diseases of the skin and subcutaneous tissue | M1: 12 Diseases of the musculoskeletal system and connective tissue | N1: 13 Injury and poisoning | O1: 14 Symptoms; signs; and ill-defined conditions | P1: 15 Blood and blood-forming organs; congenital anomalies; and certain conditions originating in the perinatal period | Q1: 16 Residual codes; unclassified | R1: 17 Dental Diseases
A2: 1996 | B2: 0.131818 | C2: 0.062215 | D2: 0.156814 | E2: 0.133571 | F2: 0.366956 | G2: 0.222008 | H2: 0.796906 | I2: 0.433479 | J2: 0.156327 | K2: 0.053118 | L2: 0.117546 | M2: 0.264563 | N2: 0.246234 | O2: 0.218564 | P2: 0.0231 | Q2: 0.184756 | R2: 0.428477
A3: 1997 | B3: 0.102998 | C3: 0.063889 | D3: 0.168571 | E3: 0.144893 | F3: 0.338054 | G3: 0.24273 | H3: 0.698009 | I3: 0.331376 | J3: 0.147793 | K3: 0.051402 | L3: 0.102951 | M3: 0.277139 | N3: 0.261002 | O3: 0.184654 | P3: 0.021386 | Q3: 0.175977 | R3: 0.415835
A4: 1998 | B4: 0.091104 | C4: 0.062502 | D4: 0.170772 | E4: 0.147672 | F4: 0.309828 | G4: 0.238078 | H4: 0.636588 | I4: 0.286924 | J4: 0.125684 | K4: 0.049656 | L4: 0.099276 | M4: 0.275094 | N4: 0.233069 | O4: 0.165917 | P4: 0.021121 | Q4: 0.162062 | R4: 0.420459
A5: 1999 | B5: 0.085203 | C5: 0.060588 | D5: 0.179788 | E5: 0.136939 | F5: 0.283629 | G5: 0.233421 | H5: 0.61896 | I5: 0.294196 | J5: 0.126664 | K5: 0.052322 | L5: 0.092639 | M5: 0.271727 | N5: 0.215214 | O5: 0.171484 | P5: 0.019558 | Q5: 0.162251 | R5: 0.426469
A6: 2000 | B6: 0.086851 | C6: 0.060946 | D6: 0.194892 | E6: 0.140907 | F6: 0.272639 | G6: 0.243679 | H6: 0.598427 | I6: 0.293265 | J6: 0.134621 | K6: 0.059856 | L6: 0.099927 | M6: 0.270806 | N6: 0.215571 | O6: 0.177706 | P6: 0.022263 | Q6: 0.154099 | R6: 0.41047
A7: 2001 | B7: 0.091779 | C7: 0.066405 | D7: 0.21322 | E7: 0.160264 | F7: 0.286715 | G7: 0.254016 | H7: 0.64293 | I7: 0.292808 | J7: 0.143336 | K7: 0.064589 | L7: 0.110214 | M7: 0.302757 | N7: 0.227079 | O7: 0.194192 | P7: 0.023708 | Q7: 0.171949 | R7: 0.425075
A8: 2002 | B8: 0.090699 | C8: 0.072136 | D8: 0.224971 | E8: 0.18947 | F8: 0.287059 | G8: 0.278184 | H8: 0.622786 | I8: 0.31431 | J8: 0.143425 | K8: 0.062475 | L8: 0.109875 | M8: 0.335687 | N8: 0.229984 | O8: 0.210235 | P8: 0.023948 | Q8: 0.164225 | R8: 0.435762
A9: 2003 | B9: 0.089543 | C9: 0.071162 | D9: 0.233448 | E9: 0.193111 | F9: 0.298352 | G9: 0.288332 | H9: 0.635767 | I9: 0.32328 | J9: 0.144256 | K9: 0.065583 | L9: 0.106342 | M9: 0.343297 | N9: 0.234305 | O9: 0.210486 | P9: 0.024395 | Q9: 0.162634 | R9: 0.441199
A10: 2004 | B10: 0.081751 | C10: 0.068477 | D10: 0.258103 | E10: 0.203953 | F10: 0.301295 | G10: 0.298983 | H10: 0.605964 | I10: 0.315014 | J10: 0.141027 | K10: 0.064343 | L10: 0.09978 | M10: 0.350529 | N10: 0.233837 | O10: 0.206622 | P10: 0.023774 | Q10: 0.160487 | R10: 0.43736
A11: 2005 | B11: 0.083677 | C11: 0.068398 | D11: 0.270849 | E11: 0.211218 | F11: 0.28454 | G11: 0.302056 | H11: 0.647263 | I11: 0.306686 | J11: 0.140318 | K11: 0.059288 | L11: 0.098684 | M11: 0.344316 | N11: 0.230048 | O11: 0.192592 | P11: 0.022463 | Q11: 0.153658 | R11: 0.434065
A12: 2006 | B12: 0.080027 | C12: 0.070944 | D12: 0.278993 | E12: 0.213712 | F12: 0.287843 | G12: 0.296401 | H12: 0.591851 | I12: 0.317015 | J12: 0.13298 | K12: 0.056707 | L12: 0.096544 | M12: 0.343278 | N12: 0.21479 | O12: 0.176313 | P12: 0.023854 | Q12: 0.154541 | R12: 0.432401
A13: 2007 | B13: 0.079347 | C13: 0.078878 | D13: 0.311487 | E13: 0.206447 | F13: 0.276679 | G13: 0.336776 | H13: 0.517034 | I13: 0.299711 | J13: 0.12893 | K13: 0.052222 | L13: 0.093913 | M13: 0.372106 | N13: 0.21507 | O13: 0.157045 | P13: 0.023734 | Q13: 0.150726 | R13: 0.435977
A14: 2008 | B14: 0.080598 | C14: 0.086208 | D14: 0.356171 | E14: 0.210145 | F14: 0.290111 | G14: 0.385064 | H14: 0.592887 | I14: 0.357693 | J14: 0.131327 | K14: 0.051039 | L14: 0.095327 | M14: 0.409673 | N14: 0.198257 | O14: 0.156992 | P14: 0.026551 | Q14: 0.153589 | R14: 0.422663
A15: 2009 | B15: 0.086439 | C15: 0.082641 | D15: 0.356327 | E15: 0.218791 | F15: 0.290568 | G15: 0.385613 | H15: 0.608882 | I15: 0.347094 | J15: 0.133692 | K15: 0.050489 | L15: 0.097176 | M15: 0.422004 | N15: 0.205419 | O15: 0.170428 | P15: 0.028098 | Q15: 0.169126 | R15: 0.421821
A16: 2010 | B16: 0.084969 | C16: 0.082086 | D16: 0.369174 | E16: 0.223574 | F16: 0.282987 | G16: 0.391375 | H16: 0.585284 | I16: 0.324487 | J16: 0.132695 | K16: 0.052249 | L16: 0.096483 | M16: 0.433978 | N16: 0.201416 | O16: 0.173227 | P16: 0.02781 | Q16: 0.172007 | R16: 0.411652
A17: 2011 | B17: 0.08426 | C17: 0.089448 | D17: 0.382407 | E17: 0.235007 | F17: 0.30236 | G17: 0.39298 | H17: 0.576713 | I17: 0.326053 | J17: 0.132102 | K17: 0.056105 | L17: 0.096907 | M17: 0.438018 | N17: 0.19898 | O17: 0.183756 | P17: 0.030866 | Q17: 0.179794 | R17: 0.410477
A18: 2012 | B18: 0.089541 | C18: 0.087641 | D18: 0.383779 | E18: 0.253087 | F18: 0.301863 | G18: 0.392439 | H18: 0.638298 | I18: 0.278851 | J18: 0.131269 | K18: 0.059203 | L18: 0.105268 | M18: 0.460476 | N18: 0.206665 | O18: 0.200316 | P18: 0.032044 | Q18: 0.173751 | R18: 0.413899
A19: 2013 | B19: 0.093484 | C19: 0.085773 | D19: 0.400357 | E19: 0.267539 | F19: 0.316081 | G19: 0.401175 | H19: 0.648578 | I19: 0.295691 | J19: 0.145584 | K19: 0.060803 | L19: 0.113655 | M19: 0.509147 | N19: 0.240112 | O19: 0.216912 | P19: 0.032765 | Q19: 0.194615 | R19: 0.423659
A20: 2014 | B20: 0.097494 | C20: 0.091367 | D20: 0.406544 | E20: 0.284598 | F20: 0.334416 | G20: 0.406755 | H20: 0.562827 | I20: 0.269174 | J20: 0.148641 | K20: 0.053252 | L20: 0.116326 | M20: 0.535064 | N20: 0.240924 | O20: 0.2085 | P20: 0.032828 | Q20: 0.188823 | R20: 0.426445
A21: 2015 | B21: 0.092215 | C21: 0.091083 | D21: 0.418676 | E21: 0.297358 | F21: 0.345386 | G21: 0.418911 | H21: 0.573471 | I21: 0.279096 | J21: 0.148227 | K21: 0.053701 | L21: 0.113591 | M21: 0.544316 | N21: 0.24567 | O21: 0.219377 | P21: 0.033989 | Q21: 0.19194 | R21: 0.429744
A22: 2016 | B22: 0.067851 | C22: 0.081163 | D22: 0.407215 | E22: 0.282404 | F22: 0.386729 | G22: 0.398017 | H22: 0.510125 | I22: 0.247328 | J22: 0.128791 | K22: 0.047248 | L22: 0.105491 | M22: 0.525717 | N22: 0.192624 | O22: 0.313424 | P22: 0.016107 | Q22: 0.339505 | R22: 0.426829
A23: 2017 | B23: 0.06407 | C23: 0.073651 | D23: 0.38217 | E23: 0.274696 | F23: 0.362116 | G23: 0.371913 | H23: 0.476135 | I23: 0.221035 | J23: 0.133518 | K23: 0.043184 | L23: 0.09607 | M23: 0.493589 | N23: 0.173176 | O23: 0.295895 | P23: 0.014803 | Q23: 0.282696 | R23: 0.433104
A24: 2018 | B24: 0.060367 | C24: 0.064288 | D24: 0.352887 | E24: 0.224459 | F24: 0.268127 | G24: 0.347664 | H24: 0.304737 | I24: 0.159536 | J24: 0.121012 | K24: 0.038936 | L24: 0.085006 | M24: 0.341395 | N24: 0.103852 | O24: 0.23804 | P24: 0.011592 | Q24: 0.26788 | R24: 0.457065
B26: 1996 | C26: 1997 | D26: 1998 | E26: 1999 | F26: 2000 | G26: 2001 | H26: 2002 | I26: 2003 | J26: 2004 | K26: 2005 | L26: 2006 | M26: 2007 | N26: 2008 | O26: 2009 | P26: 2010 | Q26: 2011 | R26: 2012 | S26: 2013 | T26: 2014 | U26: 2015 | V26: 2016 | W26: 2017 | X26: 2018
A27: 1 Infectious and parasitic diseases | B27: 0.131818 | C27: 0.102998 | D27: 0.091104 | E27: 0.085203 | F27: 0.086851 | G27: 0.091779 | H27: 0.090699 | I27: 0.089543 | J27: 0.081751 | K27: 0.083677 | L27: 0.080027 | M27: 0.079347 | N27: 0.080598 | O27: 0.086439 | P27: 0.084969 | Q27: 0.08426 | R27: 0.089541 | S27: 0.093484 | T27: 0.097494 | U27: 0.092215 | V27: 0.067851 | W27: 0.06407 | X27: 0.060367
A28: 2 Neoplasms | B28: 0.062215 | C28: 0.063889 | D28: 0.062502 | E28: 0.060588 | F28: 0.060946 | G28: 0.066405 | H28: 0.072136 | I28: 0.071162 | J28: 0.068477 | K28: 0.068398 | L28: 0.070944 | M28: 0.078878 | N28: 0.086208 | O28: 0.082641 | P28: 0.082086 | Q28: 0.089448 | R28: 0.087641 | S28: 0.085773 | T28: 0.091367 | U28: 0.091083 | V28: 0.081163 | W28: 0.073651 | X28: 0.064288
A29: 3 Endocrine, nutritional, and metabolic diseases and immunity disorders | B29: 0.156814 | C29: 0.168571 | D29: 0.170772 | E29: 0.179788 | F29: 0.194892 | G29: 0.21322 | H29: 0.224971 | I29: 0.233448 | J29: 0.258103 | K29: 0.270849 | L29: 0.278993 | M29: 0.311487 | N29: 0.356171 | O29: 0.356327 | P29: 0.369174 | Q29: 0.382407 | R29: 0.383779 | S29: 0.400357 | T29: 0.406544 | U29: 0.418676 | V29: 0.407215 | W29: 0.38217 | X29: 0.352887
A30: 4 Mental disorders | B30: 0.133571 | C30: 0.144893 | D30: 0.147672 | E30: 0.136939 | F30: 0.140907 | G30: 0.160264 | H30: 0.18947 | I30: 0.193111 | J30: 0.203953 | K30: 0.211218 | L30: 0.213712 | M30: 0.206447 | N30: 0.210145 | O30: 0.218791 | P30: 0.223574 | Q30: 0.235007 | R30: 0.253087 | S30: 0.267539 | T30: 0.284598 | U30: 0.297358 | V30: 0.282404 | W30: 0.274696 | X30: 0.224459
A31: 5 Diseases of the nervous system and sense organs | B31: 0.366956 | C31: 0.338054 | D31: 0.309828 | E31: 0.283629 | F31: 0.272639 | G31: 0.286715 | H31: 0.287059 | I31: 0.298352 | J31: 0.301295 | K31: 0.28454 | L31: 0.287843 | M31: 0.276679 | N31: 0.290111 | O31: 0.290568 | P31: 0.282987 | Q31: 0.30236 | R31: 0.301863 | S31: 0.316081 | T31: 0.334416 | U31: 0.345386 | V31: 0.386729 | W31: 0.362116 | X31: 0.268127
A32: 6 Diseases of the circulatory system | B32: 0.222008 | C32: 0.24273 | D32: 0.238078 | E32: 0.233421 | F32: 0.243679 | G32: 0.254016 | H32: 0.278184 | I32: 0.288332 | J32: 0.298983 | K32: 0.302056 | L32: 0.296401 | M32: 0.336776 | N32: 0.385064 | O32: 0.385613 | P32: 0.391375 | Q32: 0.39298 | R32: 0.392439 | S32: 0.401175 | T32: 0.406755 | U32: 0.418911 | V32: 0.398017 | W32: 0.371913 | X32: 0.347664
A33: 7 Diseases of the respiratory system | B33: 0.796906 | C33: 0.698009 | D33: 0.636588 | E33: 0.61896 | F33: 0.598427 | G33: 0.64293 | H33: 0.622786 | I33: 0.635767 | J33: 0.605964 | K33: 0.647263 | L33: 0.591851 | M33: 0.517034 | N33: 0.592887 | O33: 0.608882 | P33: 0.585284 | Q33: 0.576713 | R33: 0.638298 | S33: 0.648578 | T33: 0.562827 | U33: 0.573471 | V33: 0.510125 | W33: 0.476135 | X33: 0.304737
A34: 8 Diseases of the digestive system | B34: 0.433479 | C34: 0.331376 | D34: 0.286924 | E34: 0.294196 | F34: 0.293265 | G34: 0.292808 | H34: 0.31431 | I34: 0.32328 | J34: 0.315014 | K34: 0.306686 | L34: 0.317015 | M34: 0.299711 | N34: 0.357693 | O34: 0.347094 | P34: 0.324487 | Q34: 0.326053 | R34: 0.278851 | S34: 0.295691 | T34: 0.269174 | U34: 0.279096 | V34: 0.247328 | W34: 0.221035 | X34: 0.159536
A35: 9 Diseases of the genitourinary system | B35: 0.156327 | C35: 0.147793 | D35: 0.125684 | E35: 0.126664 | F35: 0.134621 | G35: 0.143336 | H35: 0.143425 | I35: 0.144256 | J35: 0.141027 | K35: 0.140318 | L35: 0.13298 | M35: 0.12893 | N35: 0.131327 | O35: 0.133692 | P35: 0.132695 | Q35: 0.132102 | R35: 0.131269 | S35: 0.145584 | T35: 0.148641 | U35: 0.148227 | V35: 0.128791 | W35: 0.133518 | X35: 0.121012
A36: 10 Complications of pregnancy, childbirth, and the puerperium | B36: 0.053118 | C36: 0.051402 | D36: 0.049656 | E36: 0.052322 | F36: 0.059856 | G36: 0.064589 | H36: 0.062475 | I36: 0.065583 | J36: 0.064343 | K36: 0.059288 | L36: 0.056707 | M36: 0.052222 | N36: 0.051039 | O36: 0.050489 | P36: 0.052249 | Q36: 0.056105 | R36: 0.059203 | S36: 0.060803 | T36: 0.053252 | U36: 0.053701 | V36: 0.047248 | W36: 0.043184 | X36: 0.038936
A37: 11 Diseases of the skin and subcutaneous tissue | B37: 0.117546 | C37: 0.102951 | D37: 0.099276 | E37: 0.092639 | F37: 0.099927 | G37: 0.110214 | H37: 0.109875 | I37: 0.106342 | J37: 0.09978 | K37: 0.098684 | L37: 0.096544 | M37: 0.093913 | N37: 0.095327 | O37: 0.097176 | P37: 0.096483 | Q37: 0.096907 | R37: 0.105268 | S37: 0.113655 | T37: 0.116326 | U37: 0.113591 | V37: 0.105491 | W37: 0.09607 | X37: 0.085006
A38: 12 Diseases of the musculoskeletal system and connective tissue | B38: 0.264563 | C38: 0.277139 | D38: 0.275094 | E38: 0.271727 | F38: 0.270806 | G38: 0.302757 | H38: 0.335687 | I38: 0.343297 | J38: 0.350529 | K38: 0.344316 | L38: 0.343278 | M38: 0.372106 | N38: 0.409673 | O38: 0.422004 | P38: 0.433978 | Q38: 0.438018 | R38: 0.460476 | S38: 0.509147 | T38: 0.535064 | U38: 0.544316 | V38: 0.525717 | W38: 0.493589 | X38: 0.341395
A39: 13 Injury and poisoning | B39: 0.246234 | C39: 0.261002 | D39: 0.233069 | E39: 0.215214 | F39: 0.215571 | G39: 0.227079 | H39: 0.229984 | I39: 0.234305 | J39: 0.233837 | K39: 0.230048 | L39: 0.21479 | M39: 0.21507 | N39: 0.198257 | O39: 0.205419 | P39: 0.201416 | Q39: 0.19898 | R39: 0.206665 | S39: 0.240112 | T39: 0.240924 | U39: 0.24567 | V39: 0.192624 | W39: 0.173176 | X39: 0.103852
A40: 14 Symptoms; signs; and ill-defined conditions | B40: 0.218564 | C40: 0.184654 | D40: 0.165917 | E40: 0.171484 | F40: 0.177706 | G40: 0.194192 | H40: 0.210235 | I40: 0.210486 | J40: 0.206622 | K40: 0.192592 | L40: 0.176313 | M40: 0.157045 | N40: 0.156992 | O40: 0.170428 | P40: 0.173227 | Q40: 0.183756 | R40: 0.200316 | S40: 0.216912 | T40: 0.2085 | U40: 0.219377 | V40: 0.313424 | W40: 0.295895 | X40: 0.23804
A41: 15 Blood and blood-forming organs; congenital anomalies; and certain conditions originating in the perinatal period | B41: 0.0231 | C41: 0.021386 | D41: 0.021121 | E41: 0.019558 | F41: 0.022263 | G41: 0.023708 | H41: 0.023948 | I41: 0.024395 | J41: 0.023774 | K41: 0.022463 | L41: 0.023854 | M41: 0.023734 | N41: 0.026551 | O41: 0.028098 | P41: 0.02781 | Q41: 0.030866 | R41: 0.032044 | S41: 0.032765 | T41: 0.032828 | U41: 0.033989 | V41: 0.016107 | W41: 0.014803 | X41: 0.011592
A42: 16 Residual codes; unclassified | B42: 0.184756 | C42: 0.175977 | D42: 0.162062 | E42: 0.162251 | F42: 0.154099 | G42: 0.171949 | H42: 0.164225 | I42: 0.162634 | J42: 0.160487 | K42: 0.153658 | L42: 0.154541 | M42: 0.150726 | N42: 0.153589 | O42: 0.169126 | P42: 0.172007 | Q42: 0.179794 | R42: 0.173751 | S42: 0.194615 | T42: 0.188823 | U42: 0.19194 | V42: 0.339505 | W42: 0.282696 | X42: 0.26788
A43: 17 Dental Diseases | B43: 0.428477 | C43: 0.415835 | D43: 0.420459 | E43: 0.426469 | F43: 0.41047 | G43: 0.425075 | H43: 0.435762 | I43: 0.441199 | J43: 0.43736 | K43: 0.434065 | L43: 0.432401 | M43: 0.435977 | N43: 0.422663 | O43: 0.421821 | P43: 0.411652 | Q43: 0.410477 | R43: 0.413899 | S43: 0.423659 | T43: 0.426445 | U43: 0.429744 | V43: 0.426829 | W43: 0.433104 | X43: 0.457065
